[Event "*** Titled Tuesday Blitz"]
[Site "Chess.com"]
[Date "2020.05.19"]
[Round "10"]
[White "temus_galaktionov"]
[Black "AttilaTurzo"]
[Result "1-0"]
[WhiteElo "2681"]
[BlackElo "2491"]
[TimeControl "180+1"]
[EndTime "13:57:32 PDT"]
[Termination "temus_galaktionov won by resignation"]

1. d4 {[%clk 0:03:00.9]} 1... Nf6 {[%clk 0:02:59.6]} 2. Nf3 {[%clk 0:03:01.2]}
2... e6 {[%clk 0:02:59.3]} 3. c4 {[%clk 0:03:01.6]} 3... Bb4+ {[%clk 0:02:58.1]}
4. Nbd2 {[%clk 0:03:00.9]} 4... O-O {[%clk 0:02:51.8]} 5. a3 {[%clk 0:03:00.7]}
5... Bxd2+ {[%clk 0:02:51.1]} 6. Qxd2 {[%clk 0:03:01.6]} 6... b6 {[%clk
0:02:50.7]} 7. e3 {[%clk 0:03:01.3]} 7... Bb7 {[%clk 0:02:51]} 8. Be2 {[%clk
0:03:01.6]} 8... d6 {[%clk 0:02:50.2]} 9. b4 {[%clk 0:03:01.6]} 9... Nbd7 {[%clk
0:02:50.3]} 10. Bb2 {[%clk 0:03:01]} 10... Ne4 {[%clk 0:02:49.9]} 11. Qc2 {[%clk
0:03:01.3]} 11... f5 {[%clk 0:02:50.5]} 12. O-O {[%clk 0:03:01.7]} 12... Rf6
{[%clk 0:02:46.9]} 13. d5 {[%clk 0:03:01.4]} 13... e5 {[%clk 0:02:46.6]} 14. Nd2
{[%clk 0:02:59.7]} 14... Nxd2 {[%clk 0:02:42.9]} 15. Qxd2 {[%clk 0:03:00.6]}
15... Rh6 {[%clk 0:02:42]} 16. f4 {[%clk 0:02:57.4]} 16... Qh4 {[%clk
0:02:36.8]} 17. h3 {[%clk 0:02:57.2]} 17... Rg6 {[%clk 0:02:10.9]} 18. Kh1
{[%clk 0:02:54.8]} 18... Nf6 {[%clk 0:02:07.7]} 19. Qe1 {[%clk 0:02:48.3]} 19...
Qxe1 {[%clk 0:01:55]} 20. Rfxe1 {[%clk 0:02:45.3]} 20... Re8 {[%clk 0:01:48.6]}
21. Bd3 {[%clk 0:02:44.9]} 21... Ne4 {[%clk 0:01:43.5]} 22. Kh2 {[%clk
0:02:40.1]} 22... c6 {[%clk 0:01:41.1]} 23. Bxe4 {[%clk 0:02:21.4]} 23... fxe4
{[%clk 0:01:38.2]} 24. dxc6 {[%clk 0:02:14.1]} 24... Bxc6 {[%clk 0:01:37.8]} 25.
fxe5 {[%clk 0:02:05.2]} 25... dxe5 {[%clk 0:01:38.7]} 26. Rad1 {[%clk
0:02:03.8]} 26... Rf6 {[%clk 0:01:24.4]} 27. Rd2 {[%clk 0:02:03.1]} 27... Rfe6
{[%clk 0:01:09.5]} 28. Red1 {[%clk 0:02:02]} 28... Ba4 {[%clk 0:01:08.7]} 29.
Rc1 {[%clk 0:02:00.9]} 29... Rc8 {[%clk 0:01:08.1]} 30. Rd5 {[%clk 0:01:57.7]}
30... Bb3 {[%clk 0:01:06]} 31. Rxe5 {[%clk 0:01:41.7]} 31... Rxe5 {[%clk
0:01:03.3]} 32. Bxe5 {[%clk 0:01:42.6]} 32... Bxc4 {[%clk 0:00:56.2]} 33. Kg3
{[%clk 0:01:33.3]} 33... Be6 {[%clk 0:00:39.7]} 34. Rd1 {[%clk 0:01:20.2]} 34...
Bc4 {[%clk 0:00:32.3]} 35. Rd7 {[%clk 0:01:17.5]} 35... Bf7 {[%clk 0:00:24.5]}
36. Rxa7 {[%clk 0:01:15.3]} 36... Re8 {[%clk 0:00:24.5]} 37. Bd4 {[%clk
0:01:11]} 37... Re6 {[%clk 0:00:23.5]} 38. Ra8+ {[%clk 0:01:06]} 38... Be8
{[%clk 0:00:23.8]} 39. Bxb6 {[%clk 0:01:05.5]} 39... Kf7 {[%clk 0:00:22]} 40.
Bd4 {[%clk 0:01:05]} 40... Rg6+ {[%clk 0:00:20.7]} 41. Kf2 {[%clk 0:01:03.9]}
41... Bc6 {[%clk 0:00:20.7]} 42. Ra7+ {[%clk 0:01:02.3]} 42... Ke6 {[%clk
0:00:20.8]} 43. Rxg7 {[%clk 0:01:01]} 43... Rxg7 {[%clk 0:00:20]} 44. Bxg7
{[%clk 0:01:01.9]} 44... h5 {[%clk 0:00:20.5]} 45. Kg3 {[%clk 0:01:00.5]} 45...
Kf5 {[%clk 0:00:20.5]} 46. Kh4 {[%clk 0:00:58.1]} 46... Kg6 {[%clk 0:00:20.6]}
47. Bd4 {[%clk 0:00:58.4]} 47... Bd7 {[%clk 0:00:18.7]} 48. g4 {[%clk 0:00:55]}
48... hxg4 {[%clk 0:00:19.1]} 49. hxg4 {[%clk 0:00:55.9]} 49... Bc6 {[%clk
0:00:19.6]} 50. Bc5 {[%clk 0:00:55.7]} 50... Bd7 {[%clk 0:00:19.8]} 51. Kg3
{[%clk 0:00:55.6]} 51... Kg5 {[%clk 0:00:18.3]} 52. Be7+ {[%clk 0:00:54.3]}
52... Kg6 {[%clk 0:00:18.5]} 53. Kf4 {[%clk 0:00:55.2]} 53... Bc6 {[%clk
0:00:18.9]} 54. a4 {[%clk 0:00:53.9]} 54... Bxa4 {[%clk 0:00:18.7]} 55. Kxe4
{[%clk 0:00:53.8]} 55... Bd7 {[%clk 0:00:18.5]} 56. g5 {[%clk 0:00:53]} 56...
Bf5+ {[%clk 0:00:18.8]} 57. Kd5 {[%clk 0:00:52.3]} 57... Bd3 {[%clk 0:00:18.6]}
58. Kc5 {[%clk 0:00:49.5]} 58... Kf7 {[%clk 0:00:18.8]} 59. Bf6 {[%clk
0:00:48.7]} 59... Ke6 {[%clk 0:00:19]} 60. b5 {[%clk 0:00:48.9]} 60... Kd7
{[%clk 0:00:18.3]} 61. b6 {[%clk 0:00:48.9]} 61... Be4 {[%clk 0:00:18.6]} 62.
Bd4 {[%clk 0:00:46.9]} 62... Kc8 {[%clk 0:00:17.4]} 63. Kd6 {[%clk 0:00:46.2]}
63... Kb7 {[%clk 0:00:17.6]} 64. Ke5 {[%clk 0:00:45.2]} 64... Bd3 {[%clk
0:00:17.9]} 65. Kf6 {[%clk 0:00:45]} 65... Kc6 {[%clk 0:00:18.3]} 66. g6 {[%clk
0:00:44.4]} 66... Bc4 {[%clk 0:00:18.5]} 67. g7 {[%clk 0:00:43.4]} 67... Bd5
{[%clk 0:00:18.7]} 68. e4 {[%clk 0:00:42.5]} 68... Bxe4 {[%clk 0:00:17.7]} 69.
g8=Q {[%clk 0:00:41.6]} 1-0

[Event "*** Titled Tuesday Blitz"]
[Site "Chess.com"]
[Date "2020.05.19"]
[Round "10"]
[White "Er_is_geen_hoop_meer"]
[Black "SHIVACalypso"]
[Result "1/2-1/2"]
[WhiteElo "2430"]
[BlackElo "2319"]
[TimeControl "180+1"]
[EndTime "13:57:32 PDT"]
[Termination "Game drawn - insufficient material"]

1. b4 {[%clk 0:03:00.9]} 1... Nf6 {[%clk 0:02:48.6]} 2. Bb2 {[%clk 0:03:00]}
2... g6 {[%clk 0:02:48.3]} 3. g4 {[%clk 0:02:57.5]} 3... h6 {[%clk 0:02:40.5]}
4. c4 {[%clk 0:02:56.6]} 4... Bg7 {[%clk 0:02:40.4]} 5. Bg2 {[%clk 0:02:34.6]}
5... O-O {[%clk 0:02:38.9]} 6. h4 {[%clk 0:02:30.7]} 6... Nxg4 {[%clk
0:02:34.8]} 7. Bxg7 {[%clk 0:02:29.9]} 7... Kxg7 {[%clk 0:02:35.7]} 8. h5 {[%clk
0:02:30.8]} 8... g5 {[%clk 0:02:28.4]} 9. e4 {[%clk 0:02:28.5]} 9... d6 {[%clk
0:02:17.2]} 10. d4 {[%clk 0:02:17]} 10... e5 {[%clk 0:02:14.4]} 11. Nf3 {[%clk
0:02:14.1]} 11... Nc6 {[%clk 0:02:10.6]} 12. b5 {[%clk 0:02:11.5]} 12... Nxd4
{[%clk 0:02:07.3]} 13. Nxd4 {[%clk 0:02:09.9]} 13... exd4 {[%clk 0:02:08.2]} 14.
Qxd4+ {[%clk 0:02:07.6]} 14... Qf6 {[%clk 0:02:08.6]} 15. Qxf6+ {[%clk
0:02:06.1]} 15... Nxf6 {[%clk 0:02:09.5]} 16. Nc3 {[%clk 0:02:06.2]} 16... Be6
{[%clk 0:02:06.3]} 17. Nd5 {[%clk 0:02:04.7]} 17... Bxd5 {[%clk 0:02:05.7]} 18.
cxd5 {[%clk 0:02:05.6]} 18... Nxe4 {[%clk 0:02:01.7]} 19. Bxe4 {[%clk
0:02:01.2]} 19... Rae8 {[%clk 0:02:01.6]} 20. f3 {[%clk 0:01:59.5]} 20... f5
{[%clk 0:02:01.3]} 21. Rc1 {[%clk 0:01:59.8]} 21... Rf7 {[%clk 0:02:00.1]} 22.
Rc4 {[%clk 0:01:57.1]} 22... fxe4 {[%clk 0:01:59.1]} 23. fxe4 {[%clk 0:01:58]}
23... Ree7 {[%clk 0:01:46.1]} 24. Ke2 {[%clk 0:01:57.6]} 24... Rf4 {[%clk
0:01:43.5]} 25. Ke3 {[%clk 0:01:57.7]} 25... Kf8 {[%clk 0:01:26.9]} 26. Rhc1
{[%clk 0:01:57.7]} 26... Rff7 {[%clk 0:01:26.8]} 27. a4 {[%clk 0:01:58]} 27...
Ke8 {[%clk 0:01:21.2]} 28. a5 {[%clk 0:01:58.1]} 28... b6 {[%clk 0:01:18.4]} 29.
axb6 {[%clk 0:01:57]} 29... axb6 {[%clk 0:01:19.3]} 30. Ra1 {[%clk 0:01:48.4]}
30... g4 {[%clk 0:00:43.9]} 31. Ra8+ {[%clk 0:01:41.9]} 31... Kd7 {[%clk
0:00:42.4]} 32. Ra7 {[%clk 0:01:42.8]} 32... Kc8 {[%clk 0:00:38.9]} 33. Ra8+
{[%clk 0:01:35.3]} 33... Kd7 {[%clk 0:00:31.7]} 34. Ra7 {[%clk 0:01:35.3]} 34...
Rf3+ {[%clk 0:00:28.2]} 35. Kd4 {[%clk 0:01:24.2]} 35... Kc8 {[%clk 0:00:17.5]}
36. Ra8+ {[%clk 0:01:22.6]} 36... Kd7 {[%clk 0:00:17.5]} 37. Ra7 {[%clk
0:01:22.5]} 37... Kc8 {[%clk 0:00:17.3]} 38. Ra8+ {[%clk 0:01:20.4]} 38... Kd7
{[%clk 0:00:16.8]} 39. Rh8 {[%clk 0:01:20.9]} 39... g3 {[%clk 0:00:14.6]} 40.
Rxh6 {[%clk 0:01:19.4]} 40... Rg7 {[%clk 0:00:13.6]} 41. Rc1 {[%clk 0:01:09.8]}
41... g2 {[%clk 0:00:13.4]} 42. Rg6 {[%clk 0:01:10.7]} 42... Rxg6 {[%clk
0:00:12.7]} 43. hxg6 {[%clk 0:01:11.6]} 43... Rg3 {[%clk 0:00:13.1]} 44. Rg1
{[%clk 0:01:11.3]} 44... Rxg6 {[%clk 0:00:12.3]} 45. Ke3 {[%clk 0:01:12.2]}
45... Ke7 {[%clk 0:00:10.9]} 46. Kf3 {[%clk 0:01:12]} 46... Kf6 {[%clk
0:00:10.8]} 47. Rxg2 {[%clk 0:01:01.4]} 47... Rxg2 {[%clk 0:00:11.7]} 48. Kxg2
{[%clk 0:01:02.3]} 48... Ke5 {[%clk 0:00:12]} 49. Kf3 {[%clk 0:01:03.2]} 49...
Kd4 {[%clk 0:00:12.4]} 50. Kf4 {[%clk 0:01:04.1]} 50... Kc5 {[%clk 0:00:12.9]}
51. Kf5 {[%clk 0:01:05]} 51... Kxb5 {[%clk 0:00:12]} 52. Ke6 {[%clk 0:01:05.9]}
52... Kc5 {[%clk 0:00:11.9]} 53. Kd7 {[%clk 0:01:06.1]} 53... b5 {[%clk
0:00:10.1]} 54. Kxc7 {[%clk 0:01:06.5]} 54... b4 {[%clk 0:00:10.6]} 55. e5
{[%clk 0:01:07.4]} 55... b3 {[%clk 0:00:06.5]} 56. exd6 {[%clk 0:01:05.9]} 56...
b2 {[%clk 0:00:06.8]} 57. d7 {[%clk 0:01:06.5]} 57... b1=Q {[%clk 0:00:06.9]}
58. d8=Q {[%clk 0:01:07.4]} 58... Qh7+ {[%clk 0:00:05.8]} 59. Kc8 {[%clk
0:01:03.4]} 59... Qf5+ {[%clk 0:00:04.9]} 60. Kb8 {[%clk 0:01:02.6]} 60... Qxd5
{[%clk 0:00:05]} 61. Qa5+ {[%clk 0:01:01.7]} 61... Kd4 {[%clk 0:00:05.2]} 62.
Qd2+ {[%clk 0:01:01.5]} 62... Ke5 {[%clk 0:00:06.1]} 63. Qh2+ {[%clk 0:01:01.7]}
63... Ke6 {[%clk 0:00:06.1]} 64. Qh6+ {[%clk 0:01:01.8]} 64... Ke5 {[%clk
0:00:07]} 65. Qg5+ {[%clk 0:01:01]} 65... Kd4 {[%clk 0:00:07.9]} 66. Qd2+ {[%clk
0:01:00.6]} 66... Ke4 {[%clk 0:00:08]} 67. Qe2+ {[%clk 0:01:00.3]} 67... Kd4
{[%clk 0:00:08.9]} 68. Ka7 {[%clk 0:00:58.7]} 68... Qc5+ {[%clk 0:00:08.3]} 69.
Kb7 {[%clk 0:00:58.6]} 69... Qc4 {[%clk 0:00:08.4]} 70. Qg4+ {[%clk 0:00:57.8]}
70... Kc3 {[%clk 0:00:08.9]} 71. Qf3+ {[%clk 0:00:57.9]} 71... Kb4 {[%clk
0:00:09.8]} 72. Qe3 {[%clk 0:00:56.9]} 72... Qb5+ {[%clk 0:00:09.7]} 73. Kc7
{[%clk 0:00:56.9]} 73... Qc5+ {[%clk 0:00:10]} 74. Qxc5+ {[%clk 0:00:57.3]}
74... Kxc5 {[%clk 0:00:10.9]} 1/2-1/2

[Event "*** Titled Tuesday Blitz"]
[Site "Chess.com"]
[Date "2020.05.19"]
[Round "10"]
[White "Xeslu"]
[Black "PauloCesarCosta_sad"]
[Result "1/2-1/2"]
[WhiteElo "2348"]
[BlackElo "2206"]
[TimeControl "180+1"]
[EndTime "13:57:33 PDT"]
[Termination "Game drawn by repetition"]

1. e4 {[%clk 0:03:00.9]} 1... e6 {[%clk 0:02:58.9]} 2. d3 {[%clk 0:02:59.6]}
2... c5 {[%clk 0:02:57.7]} 3. Nd2 {[%clk 0:03:00.1]} 3... Nc6 {[%clk 0:02:57.7]}
4. Ngf3 {[%clk 0:03:00.3]} 4... g6 {[%clk 0:02:57.7]} 5. g3 {[%clk 0:03:00.4]}
5... Bg7 {[%clk 0:02:57.8]} 6. Bg2 {[%clk 0:03:01]} 6... Nge7 {[%clk 0:02:58]}
7. O-O {[%clk 0:03:01.6]} 7... O-O {[%clk 0:02:58.1]} 8. c3 {[%clk 0:03:02.3]}
8... d6 {[%clk 0:02:57.5]} 9. h4 {[%clk 0:03:02.8]} 9... Rb8 {[%clk 0:02:56.3]}
10. Re1 {[%clk 0:03:02.7]} 10... b5 {[%clk 0:02:55.6]} 11. Qc2 {[%clk
0:03:02.5]} 11... b4 {[%clk 0:02:53.6]} 12. Nf1 {[%clk 0:03:02.3]} 12... a5
{[%clk 0:02:47.2]} 13. h5 {[%clk 0:02:58.1]} 13... Ba6 {[%clk 0:02:43.4]} 14. h6
{[%clk 0:02:49.6]} 14... Bh8 {[%clk 0:02:37.5]} 15. Bg5 {[%clk 0:02:49.4]} 15...
Ne5 {[%clk 0:02:31.7]} 16. Rad1 {[%clk 0:02:44]} 16... Nxf3+ {[%clk 0:02:30.9]}
17. Bxf3 {[%clk 0:02:41.1]} 17... Qc7 {[%clk 0:02:18.7]} 18. Bg2 {[%clk
0:02:06.4]} 18... Nc6 {[%clk 0:02:13.8]} 19. Bf4 {[%clk 0:01:33.8]} 19... Rbd8
{[%clk 0:02:03.6]} 20. Be3 {[%clk 0:01:13.2]} 20... Ne5 {[%clk 0:01:57.9]} 21.
d4 {[%clk 0:00:54.9]} 21... cxd4 {[%clk 0:01:49.5]} 22. Bxd4 {[%clk 0:00:54.8]}
22... Bxf1 {[%clk 0:01:46]} 23. Rxf1 {[%clk 0:00:53.7]} 23... bxc3 {[%clk
0:01:34.1]} 24. Qxc3 {[%clk 0:00:40.3]} 24... Qxc3 {[%clk 0:01:31.6]} 25. Bxc3
{[%clk 0:00:40.1]} 25... Nc4 {[%clk 0:01:20]} 26. Bxh8 {[%clk 0:00:38.5]} 26...
Kxh8 {[%clk 0:01:20.9]} 27. b3 {[%clk 0:00:39.1]} 27... Ne5 {[%clk 0:01:15.9]}
28. Rd4 {[%clk 0:00:37.7]} 28... Ng4 {[%clk 0:01:05.3]} 29. Rfd1 {[%clk
0:00:36.7]} 29... Nxh6 {[%clk 0:01:03.9]} 30. Rxd6 {[%clk 0:00:36.6]} 30... Rxd6
{[%clk 0:01:03.9]} 31. Rxd6 {[%clk 0:00:35.9]} 31... Ra8 {[%clk 0:00:57.7]} 32.
e5 {[%clk 0:00:26.9]} 32... Ra7 {[%clk 0:00:57.4]} 33. a3 {[%clk 0:00:21.3]}
33... Kg7 {[%clk 0:00:57]} 34. b4 {[%clk 0:00:20.4]} 34... axb4 {[%clk
0:00:56.4]} 35. axb4 {[%clk 0:00:19.5]} 35... Nf5 {[%clk 0:00:57.3]} 36. Rb6
{[%clk 0:00:18.3]} 36... Ra1+ {[%clk 0:00:50.8]} 37. Bf1 {[%clk 0:00:15.7]}
37... Nd4 {[%clk 0:00:38.6]} 38. Kg2 {[%clk 0:00:15.4]} 38... Rb1 {[%clk
0:00:32.9]} 39. b5 {[%clk 0:00:14.3]} 39... Rb3 {[%clk 0:00:17.7]} 40. Rb7
{[%clk 0:00:13.6]} 40... Nf3 {[%clk 0:00:16.5]} 41. b6 {[%clk 0:00:12.4]} 41...
Nxe5 {[%clk 0:00:15.8]} 42. Be2 {[%clk 0:00:11.9]} 42... Rb2 {[%clk 0:00:14.5]}
43. Kf1 {[%clk 0:00:11.5]} 43... Rb1+ {[%clk 0:00:13.9]} 44. Kg2 {[%clk
0:00:11.7]} 44... Rb2 {[%clk 0:00:14.5]} 45. Bf3 {[%clk 0:00:11.4]} 45... Nxf3
{[%clk 0:00:12.9]} 46. Kxf3 {[%clk 0:00:11.4]} 46... Kf6 {[%clk 0:00:12.1]} 47.
Rb8 {[%clk 0:00:11.5]} 47... h5 {[%clk 0:00:11.4]} 48. b7 {[%clk 0:00:12.1]}
48... Rb3+ {[%clk 0:00:11.8]} 49. Kg2 {[%clk 0:00:12]} 49... g5 {[%clk
0:00:10.6]} 50. f4 {[%clk 0:00:11.8]} 50... gxf4 {[%clk 0:00:10.2]} 51. gxf4
{[%clk 0:00:11.7]} 51... Kg7 {[%clk 0:00:08.8]} 52. Kf2 {[%clk 0:00:11.5]} 52...
Kf6 {[%clk 0:00:08.4]} 53. Kg2 {[%clk 0:00:11.9]} 53... Kg7 {[%clk 0:00:08.6]}
54. Kh2 {[%clk 0:00:12.3]} 54... Kf6 {[%clk 0:00:08.8]} 55. Kg2 {[%clk
0:00:13.2]} 1/2-1/2

[Event "*** Titled Tuesday Blitz"]
[Site "Chess.com"]
[Date "2020.05.19"]
[Round "10"]
[White "MaxLeto"]
[Black "ChessMavenYeti"]
[Result "1-0"]
[WhiteElo "2330"]
[BlackElo "2113"]
[TimeControl "180+1"]
[EndTime "13:57:36 PDT"]
[Termination "MaxLeto won by resignation"]

1. g4 {[%clk 0:03:00.1]} 1... d5 {[%clk 0:02:58]} 2. g5 {[%clk 0:03:00.3]} 2...
e5 {[%clk 0:02:56.4]} 3. d4 {[%clk 0:02:57.4]} 3... e4 {[%clk 0:02:54.4]} 4. c4
{[%clk 0:02:56.2]} 4... c6 {[%clk 0:02:54.4]} 5. Nc3 {[%clk 0:02:55.9]} 5... Ne7
{[%clk 0:02:41.2]} 6. h4 {[%clk 0:02:49.2]} 6... Nf5 {[%clk 0:02:30.7]} 7. Bf4
{[%clk 0:02:34.1]} 7... Be6 {[%clk 0:02:20.4]} 8. e3 {[%clk 0:02:18.8]} 8... Qb6
{[%clk 0:02:12.1]} 9. Qb3 {[%clk 0:02:06.4]} 9... Na6 {[%clk 0:02:00.6]} 10. c5
{[%clk 0:02:03.4]} 10... Qxb3 {[%clk 0:01:59.2]} 11. axb3 {[%clk 0:02:04.3]}
11... Nb4 {[%clk 0:01:59.1]} 12. Ra4 {[%clk 0:01:58.3]} 12... a5 {[%clk
0:01:49.5]} 13. Bc7 {[%clk 0:01:35.2]} 13... Be7 {[%clk 0:01:31.6]} 14. Bxa5
{[%clk 0:01:30.7]} 14... Na6 {[%clk 0:01:26.3]} 15. Nge2 {[%clk 0:01:23.7]}
15... O-O {[%clk 0:01:25.7]} 16. Nf4 {[%clk 0:01:23.3]} 16... Bd7 {[%clk
0:01:24.5]} 17. Be2 {[%clk 0:01:19.7]} 17... Bd8 {[%clk 0:01:13.5]} 18. Bxd8
{[%clk 0:00:53.1]} 18... Rfxd8 {[%clk 0:01:11.8]} 19. Kd2 {[%clk 0:00:51.9]}
19... Nc7 {[%clk 0:01:10.8]} 20. h5 {[%clk 0:00:35.8]} 20... Ne6 {[%clk
0:01:03.9]} 21. Nxe6 {[%clk 0:00:34.2]} 21... fxe6 {[%clk 0:01:03.5]} 22. Bg4
{[%clk 0:00:29.5]} 22... Ne7 {[%clk 0:00:55.5]} 23. Rha1 {[%clk 0:00:27.6]}
23... Rab8 {[%clk 0:00:54.9]} 24. Ra7 {[%clk 0:00:27.4]} 24... Rf8 {[%clk
0:00:54.7]} 25. Ke1 {[%clk 0:00:24]} 25... Rf7 {[%clk 0:00:53.3]} 26. b4 {[%clk
0:00:20.6]} 26... Nf5 {[%clk 0:00:47.5]} 27. Ne2 {[%clk 0:00:12.4]} 27... Nh4
{[%clk 0:00:46.2]} 28. Nf4 {[%clk 0:00:12.8]} 28... Nf5 {[%clk 0:00:35.1]} 29.
Bxf5 {[%clk 0:00:11.9]} 29... Rxf5 {[%clk 0:00:33]} 30. Ra8 {[%clk 0:00:12.8]}
30... Rxa8 {[%clk 0:00:27.8]} 31. Rxa8+ {[%clk 0:00:13.7]} 31... Kf7 {[%clk
0:00:28.4]} 32. g6+ {[%clk 0:00:14.3]} 32... hxg6 {[%clk 0:00:26.8]} 33. hxg6+
{[%clk 0:00:15.2]} 33... Ke7 {[%clk 0:00:22.3]} 34. Rb8 {[%clk 0:00:16.1]} 34...
Rg5 {[%clk 0:00:19.4]} 35. Rxb7 {[%clk 0:00:15.4]} 35... Rg1+ {[%clk 0:00:19.1]}
36. Kd2 {[%clk 0:00:15.5]} 36... Rb1 {[%clk 0:00:19.3]} 37. b5 {[%clk
0:00:09.4]} 37... Rxb2+ {[%clk 0:00:18.9]} 38. Kc3 {[%clk 0:00:08.4]} 38... Rxb5
{[%clk 0:00:18.6]} 39. Rxb5 {[%clk 0:00:08.5]} 39... cxb5 {[%clk 0:00:18.9]} 40.
Kb4 {[%clk 0:00:08.8]} 40... Bc6 {[%clk 0:00:18.2]} 41. Ka5 {[%clk 0:00:08.6]}
41... Kd7 {[%clk 0:00:18.1]} 42. Nh5 {[%clk 0:00:08.2]} 42... Kc7 {[%clk
0:00:15]} 43. Nxg7 {[%clk 0:00:07.4]} 43... Bd7 {[%clk 0:00:14.5]} 44. Nh5
{[%clk 0:00:06.8]} 44... Be8 {[%clk 0:00:12]} 45. Nf4 {[%clk 0:00:06.2]} 45...
Kd7 {[%clk 0:00:10.9]} 46. Kxb5 {[%clk 0:00:06.3]} 46... Ke7+ {[%clk 0:00:11.2]}
47. Kb6 {[%clk 0:00:06.5]} 47... Kf6 {[%clk 0:00:09]} 48. c6 {[%clk 0:00:06.3]}
48... Ke7 {[%clk 0:00:08.9]} 49. Kb7 {[%clk 0:00:06]} 49... Kd6 {[%clk
0:00:08.9]} 50. c7 {[%clk 0:00:06.5]} 50... Bc6+ {[%clk 0:00:08.8]} 51. Kb8
{[%clk 0:00:06.9]} 51... Bd7 {[%clk 0:00:08.6]} 52. c8=Q {[%clk 0:00:07.3]}
52... Bxc8 {[%clk 0:00:09]} 53. Kxc8 {[%clk 0:00:07.8]} 53... Ke7 {[%clk
0:00:09.9]} 54. Kc7 {[%clk 0:00:07.6]} 54... Kf6 {[%clk 0:00:10.3]} 55. Kd6
{[%clk 0:00:07.9]} 55... Kg7 {[%clk 0:00:09.2]} 56. Kxe6 {[%clk 0:00:07.9]} 1-0

[Event "*** Titled Tuesday Blitz"]
[Site "Chess.com"]
[Date "2020.05.19"]
[Round "10"]
[White "Nara_Kh"]
[Black "alenee"]
[Result "0-1"]
[WhiteElo "2277"]
[BlackElo "2411"]
[TimeControl "180+1"]
[EndTime "13:57:36 PDT"]
[Termination "alenee won by checkmate"]

1. e4 {[%clk 0:03:00.9]} 1... c5 {[%clk 0:02:59.2]} 2. Nf3 {[%clk 0:03:00.5]}
2... e6 {[%clk 0:02:58.2]} 3. d4 {[%clk 0:02:59.7]} 3... cxd4 {[%clk 0:02:58.2]}
4. Nxd4 {[%clk 0:02:59.6]} 4... Nc6 {[%clk 0:02:58.1]} 5. Nc3 {[%clk 0:02:58.8]}
5... Qc7 {[%clk 0:02:57.4]} 6. Be3 {[%clk 0:02:53.9]} 6... a6 {[%clk 0:02:56.4]}
7. Be2 {[%clk 0:02:46.4]} 7... Nf6 {[%clk 0:02:55.9]} 8. O-O {[%clk 0:02:36.7]}
8... b5 {[%clk 0:02:49.5]} 9. Nxc6 {[%clk 0:02:13.2]} 9... dxc6 {[%clk
0:02:49.3]} 10. a3 {[%clk 0:01:49.7]} 10... Be7 {[%clk 0:02:42.4]} 11. f4 {[%clk
0:01:49.2]} 11... O-O {[%clk 0:02:39.5]} 12. e5 {[%clk 0:01:41.9]} 12... Nd5
{[%clk 0:02:36.7]} 13. Nxd5 {[%clk 0:01:31.3]} 13... cxd5 {[%clk 0:02:37.6]} 14.
Bd4 {[%clk 0:01:30.4]} 14... Bd7 {[%clk 0:02:36.1]} 15. c3 {[%clk 0:01:30.3]}
15... a5 {[%clk 0:02:34.3]} 16. Kh1 {[%clk 0:01:28.3]} 16... b4 {[%clk
0:02:32.4]} 17. axb4 {[%clk 0:01:26.8]} 17... axb4 {[%clk 0:02:32.3]} 18. Bd3
{[%clk 0:01:26.3]} 18... g6 {[%clk 0:02:21.7]} 19. Qg4 {[%clk 0:01:13.4]} 19...
Qb7 {[%clk 0:02:11.4]} 20. h4 {[%clk 0:01:03]} 20... Bb5 {[%clk 0:02:07.4]} 21.
Bxb5 {[%clk 0:00:41.5]} 21... Qxb5 {[%clk 0:02:06.2]} 22. h5 {[%clk 0:00:42.1]}
22... bxc3 {[%clk 0:02:01.9]} 23. bxc3 {[%clk 0:00:41.5]} 23... Qd3 {[%clk
0:01:51.3]} 24. hxg6 {[%clk 0:00:34.9]} 24... hxg6 {[%clk 0:01:43.2]} 25. Rfd1
{[%clk 0:00:26.6]} 25... Qe4 {[%clk 0:01:20.6]} 26. Re1 {[%clk 0:00:26.3]} 26...
Rxa1 {[%clk 0:01:13.9]} 27. Rxa1 {[%clk 0:00:27.2]} 27... Kg7 {[%clk 0:01:13.5]}
28. Kg1 {[%clk 0:00:26.9]} 28... Rh8 {[%clk 0:00:53]} 29. Qg3 {[%clk 0:00:23.4]}
29... Rh4 {[%clk 0:00:47.1]} 30. Rf1 {[%clk 0:00:22.4]} 30... Qf5 {[%clk
0:00:41.5]} 31. Qe3 {[%clk 0:00:19.8]} 31... Qh5 {[%clk 0:00:33]} 32. Kf2 {[%clk
0:00:19.7]} 32... Rg4 {[%clk 0:00:30.2]} 33. Qf3 {[%clk 0:00:17.1]} 33... Bh4+
{[%clk 0:00:27.8]} 34. Kg1 {[%clk 0:00:17.3]} 34... Bg3 {[%clk 0:00:25.6]} 35.
Qxg4 {[%clk 0:00:14.5]} 35... Qxg4 {[%clk 0:00:25.2]} 36. Rf3 {[%clk 0:00:15.4]}
36... Qh4 {[%clk 0:00:23.6]} 37. Kf1 {[%clk 0:00:15.6]} 37... Qh1+ {[%clk
0:00:23.2]} 38. Ke2 {[%clk 0:00:13.9]} 38... Qxg2+ {[%clk 0:00:23.1]} 39. Bf2
{[%clk 0:00:12]} 39... Bxf2 {[%clk 0:00:22.5]} 40. Rxf2 {[%clk 0:00:12.9]} 40...
Qe4+ {[%clk 0:00:22.6]} 41. Kd2 {[%clk 0:00:13.5]} 41... g5 {[%clk 0:00:21]} 42.
fxg5 {[%clk 0:00:12.4]} 42... Qxe5 {[%clk 0:00:21.2]} 43. Kd3 {[%clk 0:00:11.8]}
43... Qxg5 {[%clk 0:00:20.5]} 44. Kd4 {[%clk 0:00:12]} 44... Qg1 {[%clk
0:00:19]} 45. Ke3 {[%clk 0:00:12.5]} 45... Qxf2+ {[%clk 0:00:18.9]} 46. Kxf2
{[%clk 0:00:12.6]} 46... Kf6 {[%clk 0:00:19.6]} 47. Ke3 {[%clk 0:00:13.1]} 47...
Ke5 {[%clk 0:00:20.2]} 48. Kd3 {[%clk 0:00:13.3]} 48... f5 {[%clk 0:00:20.8]}
49. Ke3 {[%clk 0:00:13.6]} 49... f4+ {[%clk 0:00:21.4]} 50. Kf3 {[%clk
0:00:14.1]} 50... Kf5 {[%clk 0:00:21.8]} 51. Kf2 {[%clk 0:00:14.3]} 51... e5
{[%clk 0:00:22.3]} 52. Ke2 {[%clk 0:00:14.7]} 52... e4 {[%clk 0:00:22.9]} 53.
Kf2 {[%clk 0:00:15.3]} 53... Kg4 {[%clk 0:00:23.1]} 54. Ke2 {[%clk 0:00:16.2]}
54... e3 {[%clk 0:00:23.1]} 55. Kf1 {[%clk 0:00:16.1]} 55... Kf3 {[%clk
0:00:23.6]} 56. c4 {[%clk 0:00:16.5]} 56... dxc4 {[%clk 0:00:22.7]} 57. Ke1
{[%clk 0:00:16.6]} 57... c3 {[%clk 0:00:22.7]} 58. Kf1 {[%clk 0:00:17]} 58... c2
{[%clk 0:00:22.8]} 59. Ke1 {[%clk 0:00:17]} 59... c1=Q# {[%clk 0:00:21.9]} 0-1